fUST/lending_fUST_20241123
["ID","MTS","AMOUNT","RATE_DAILY","PERIOD"]
[343097355,1732353033284,-323.14225605,0.00018099,2]
[343097357,1732353033294,-500.0,0.00018099,2]
[343097360,1732353033304,-500.0,0.00018099,2]
[343097361,1732353033313,-300.0,0.00018099,2]
[343097364,1732353033323,-500.0,0.00018099,2]
[343097365,1732353033332,-500.0,0.00018099,2]
[343097367,1732353033341,-151.0,0.000181,2]
[343097370,1732353033351,-151.0,0.000181,2]
[343097372,1732353033360,-151.0,0.000181,2]
[343097374,1732353033370,-157.372488,0.000181,2]
[343097376,1732353033379,-250000.0,0.000181,2]
[343097378,1732353033388,-212.655094,0.000181,2]
[343097380,1732353033398,-153.0,0.000181,2]
[343097382,1732353033407,-187.37538179,0.000181,2]
[343097384,1732353033417,-501.43537071,0.00018173,2]
[343097385,1732353033426,-500.0,0.00018173,2]
[343097386,1732353033437,-500.0,0.00018173,2]
[343097388,1732353033446,-500.0,0.00018173,2]
[343097390,1732353033455,-249.43521953,0.00018173,2]
[343097392,1732353033465,-500.89544524,0.00018173,2]
[343097394,1732353033475,-501.31636029,0.00018173,2]
[343097396,1732353033485,-323.59307109,0.00018173,2]
[343097398,1732353033495,-361.99066157,0.00018173,2]
[343097400,1732353033505,-500.0,0.00018173,2]
[343097402,1732353033514,-500.0,0.00018173,2]
[343097404,1732353033524,-500.0,0.00018173,2]
[343097406,1732353033534,-500.0,0.00018173,2]
[343097408,1732353033543,-500.0,0.00018173,2]
[343097410,1732353033553,-500.91785115,0.00018173,2]
[343097412,1732353033563,-500.0,0.00018173,2]
[343097414,1732353033572,-500.0,0.00018173,2]
[343097416,1732353033582,-901103.35517625,0.000182,2]
[343097418,1732353033595,-3055.7190729,0.000182,2]
[343097596,1732353035520,-530.368397,0.000182,2]
[343097603,1732353035584,-4005.65154231,0.000182,2]
[343097876,1732353038909,-261799.06702023,0.000182,2]
[343097882,1732353038962,-5647.98171522,0.000182,2]
[343098367,1732353043693,-500.0,0.00018099,2]
[343098369,1732353043703,-374.91771094,0.00018099,2]
[343098371,1732353043714,-500.0,0.00018099,2]
[343098373,1732353043727,-500.0,0.00018099,2]
[343098375,1732353043737,-243.76623087,0.00018173,2]
[343098381,1732353043805,-256.23376913,0.00018173,2]
[343098382,1732353043815,-1748.77855822,0.00018199,2]
[343098383,1732353043827,-921.060767,0.00018199,2]
[343098384,1732353043836,-2122.59582802,0.000182,2]
[343098660,1732353046658,-726.62809208,0.00017918,2]
[343103908,1732354232838,-217.32695964,9.715e-05,2]
[343103909,1732354232848,-217.32695964,9.813e-05,2]
[343103910,1732354232859,-998.32700089,0.0001,2]
[343103911,1732354232868,-639.17275085,0.000109,2]
[343103912,1732354232879,-300.0,0.00010958,2]
[343103913,1732354232889,-300.0,0.00010958,2]
[343103914,1732354232899,-931.13,0.00010959,2]
[343103915,1732354232909,-1244.79,0.00010959,2]
[343103916,1732354232919,-1037.33,0.00010959,2]
[343103917,1732354232928,-864.44,0.00010959,2]
[343103918,1732354232938,-720.37,0.00010959,2]
[343103919,1732354232948,-720.37,0.00010959,2]
[343103920,1732354232958,-480.24,0.00010959,2]
[343103921,1732354232968,-400.2,0.00010959,2]
[343103922,1732354232977,-333.5,0.00010959,2]
[343103923,1732354232988,-258.2536466,0.00011914,2]
[343103924,1732354232997,-729.3411097,0.00011977,2]
[343103925,1732354233007,-420.0,0.00012042,2]
[343103926,1732354233018,-420.0,0.00012054,2]
[343103927,1732354233028,-300.0,0.00013233,2]
[343103928,1732354233038,-432.0,0.00013259,2]
[343103929,1732354233050,-267.377303,0.00013699,2]
[343103930,1732354233061,-179.641417,0.00013973,2]
[343103931,1732354233072,-24900.0,0.00014601,2]
[343103932,1732354233086,-230.1201991,0.00014752,2]
[343103933,1732354233096,-1820.6038461,0.00017099,2]
[343103934,1732354233106,-153.0,0.00017178,2]
[343103935,1732354233116,-425.2228646,0.00017178,2]
[343103936,1732354233127,-161.4148861,0.00017378,2]
[343103937,1732354233137,-212.655094,0.00017378,2]
[343103938,1732354233148,-798.38093028,0.000179,2]
[343103939,1732354233160,-401.52051919,0.000179,2]
[343103940,1732354233171,-353.81828852,0.000179,2]
[343103941,1732354233182,-401.52051916,0.00017925,2]
[343103942,1732354233191,-401.52051916,0.0001795,2]
[343103943,1732354233202,-380.70253596,0.00017973,2]
[343103944,1732354233212,-160.0,0.00017973,2]
[343103945,1732354233222,-401.52051916,0.00017975,2]
[343103946,1732354233232,-342.207,0.00017999,2]
[343103948,1732354233242,-592.97448915,0.00017999,2]
[343103949,1732354233252,-519.27466845,0.00017999,2]
[343103950,1732354233262,-500.0,0.00017999,2]
[343103951,1732354233272,-500.0,0.00017999,2]
[343103952,1732354233282,-500.0,0.00017999,2]
[343103953,1732354233296,-500.0,0.00017999,2]
[343103954,1732354233307,-500.0,0.00017999,2]
[343103955,1732354233318,-500.0,0.00017999,2]
[343103956,1732354233328,-500.0,0.00017999,2]
[343103957,1732354233337,-500.0,0.00017999,2]
[343103958,1732354233347,-500.0,0.00017999,2]
[343103959,1732354233357,-500.0,0.00017999,2]
[343103960,1732354233367,-500.0,0.00017999,2]
[343103961,1732354233377,-500.0,0.00017999,2]
[343103962,1732354233386,-500.0,0.00017999,2]
[343103963,1732354233397,-500.0,0.00017999,2]
[343103964,1732354233407,-500.0,0.00017999,2]
[343103965,1732354233417,-500.0,0.00017999,2]
[343103966,1732354233427,-500.0,0.00017999,2]
[343103967,1732354233437,-647.93390801,0.00017999,2]
[343103968,1732354233447,-500.0,0.00017999,2]
[343103969,1732354233456,-500.0,0.00017999,2]
[343103970,1732354233466,-500.0,0.00017999,2]
[343103971,1732354233476,-417.30228381,0.00017999,2]
[343103972,1732354233486,-169.66591777,0.00017999,2]
[343103973,1732354233496,-500.0,0.00017999,2]
[343103974,1732354233506,-500.0,0.00017999,2]
[343103975,1732354233516,-500.0,0.00017999,2]
[343103976,1732354233525,-500.0,0.00017999,2]
[343103977,1732354233535,-431.30809399,0.00017999,2]
[343103978,1732354233548,-500.0,0.00017999,2]
[343103979,1732354233558,-500.0,0.00017999,2]
[343103980,1732354233569,-313.78215761,0.00017999,2]
[343103981,1732354233579,-500.0,0.00017999,2]
[343103982,1732354233589,-500.0,0.00017999,2]
[343103983,1732354233599,-500.0,0.00017999,2]
[343103984,1732354233608,-500.0,0.00017999,2]
[343103985,1732354233618,-500.0,0.00017999,2]
[343103986,1732354233629,-500.0,0.00017999,2]
[343103987,1732354233640,-500.0,0.00017999,2]
[343103988,1732354233650,-500.0,0.00017999,2]
[343103989,1732354233661,-500.0,0.00017999,2]
[343103990,1732354233671,-500.0,0.00017999,2]
[343103991,1732354233681,-500.0,0.00017999,2]
[343103992,1732354233691,-500.0,0.00017999,2]
[343103993,1732354233702,-500.0,0.00017999,2]
[343103994,1732354233712,-500.0,0.00017999,2]
[343103995,1732354233722,-500.0,0.00017999,2]
[343103996,1732354233732,-500.0,0.00017999,2]
[343103997,1732354233744,-500.0,0.00017999,2]
[343103998,1732354233753,-500.0,0.00017999,2]
[343103999,1732354233764,-500.0,0.00017999,2]
[343104000,1732354233775,-500.0,0.00017999,2]
[343104001,1732354233786,-500.0,0.00017999,2]
[343104002,1732354233804,-500.0,0.00017999,2]
[343104003,1732354233815,-500.0,0.00017999,2]
[343104004,1732354233825,-413.21056736,0.00017999,2]
[343104005,1732354233836,-500.0,0.00017999,2]
[343104006,1732354233847,-500.0,0.00017999,2]
[343104007,1732354233858,-500.0,0.00017999,2]
[343104008,1732354233867,-500.0,0.00017999,2]
[343104009,1732354233878,-500.0,0.00017999,2]
[343104010,1732354233890,-500.0,0.00017999,2]
[343104011,1732354233901,-500.0,0.00017999,2]
[343104012,1732354233911,-275.4194978,0.00017999,2]
[343104013,1732354233922,-500.0,0.00017999,2]
[343104014,1732354233932,-209.55981652,0.00017999,2]
[343104015,1732354233942,-236.27657793,0.00017999,2]
[343104016,1732354233951,-500.0,0.00017999,2]
[343104017,1732354233962,-393.52497454,0.00017999,2]
[343104018,1732354233973,-500.0,0.00017999,2]
[343104019,1732354233983,-192.79364845,0.00017999,2]
[343104020,1732354233993,-250000.0,0.00018,2]
[343104021,1732354234004,-227260.29,0.00018,5]
[343104022,1732354234015,-401.52051916,0.00018,2]
[343104023,1732354234025,-300.224466,0.000181,2]
[343104024,1732354234037,-1224.97036279,0.000181,2]
[343104025,1732354234048,-501.34823236,0.00018173,2]
[343104026,1732354234058,-500.0,0.00018173,2]
[343104027,1732354234073,-564.16281913,0.00018173,2]
[343104028,1732354234083,-500.0,0.00018173,2]
[343104029,1732354234093,-500.0,0.00018173,2]
[343104030,1732354234103,-527.29696343,0.00018173,2]
[343104031,1732354234115,-160.0,0.00018173,2]
[343104032,1732354234125,-333.46025825,0.00018173,2]
[343104033,1732354234135,-360.01785157,0.00018173,2]
[343104034,1732354234146,-158.5,0.00018173,2]
[343104035,1732354234158,-160.0,0.00018173,2]
[343104036,1732354234168,-500.0,0.00018173,2]
[343104037,1732354234178,-158.51769511,0.00018173,2]
[343104038,1732354234188,-155.0,0.00018173,2]
[343104039,1732354234201,-500.0,0.00018173,2]
[343104040,1732354234211,-500.0,0.00018173,2]
[343104041,1732354234222,-170.0,0.00018173,2]
[343104042,1732354234232,-160.0,0.00018173,2]
[343104043,1732354234242,-160.0,0.00018173,2]
[343104044,1732354234252,-500.0,0.00018173,2]
[343104045,1732354234262,-418.5,0.00018173,2]
[343104046,1732354234272,-500.0,0.00018173,2]
[343104047,1732354234282,-500.0,0.00018173,2]
[343104048,1732354234294,-155.0,0.00018173,2]
[343104049,1732354234306,-160.0,0.00018173,2]
[343104050,1732354234316,-160.0,0.00018173,2]
[343104051,1732354234478,-200.0,0.00018173,2]
[343104052,1732354234488,-500.0,0.00018173,2]
[343104053,1732354234498,-160.0,0.00018173,2]
[343104054,1732354234509,-157.86826772,0.00018173,2]
[343104055,1732354234520,-500.39463857,0.00018173,2]
[343104056,1732354234530,-500.0,0.00018173,2]
[343104057,1732354234539,-500.80713521,0.00018173,2]
[343104058,1732354234553,-160.0,0.00018173,2]
[343104059,1732354234563,-170.05679185,0.00018173,2]
[343104060,1732354234573,-151.0,0.00018173,2]
[343104061,1732354234583,-500.0,0.00018198,2]
[343104062,1732354234593,-2224.86610435,0.00018199,2]
[343104063,1732354234603,-169791.71218995,0.000182,2]
[343104064,1732354234646,-51744.20944218,0.000182,2]
[343104065,1732354234658,-782.30462926,0.000182,2]
[343104074,1732354239475,-277.92,0.00010959,2]
[343104075,1732354239484,-8936.83757484,0.000179,2]
[343104113,1732354243820,-277.92,0.00010849,2]
[343104114,1732354243830,-231.6,0.00010959,2]
[343104115,1732354243839,-1170.53,0.000179,2]
[343104174,1732354246985,-842.52174045,0.000179,2]
[343104252,1732354775607,3000.0,0.00029614,120]
[343104266,1732355202954,-176.00078443,0.00010327,2]
[343104267,1732355202989,-300.0,0.00010958,2]
[343104268,1732355203025,-313.23,0.00010959,2]
[343104269,1732355203057,-261.02,0.00010959,2]
[343104270,1732355203084,-217.52,0.00010959,2]
[343104271,1732355203112,-181.27,0.00010959,2]
[343104272,1732355203141,-151.06,0.00010959,2]
[343104273,1732355203175,-552.89921557,0.00010959,2]
[343104385,1732355432096,-202.40078443,0.00010741,2]
[343104386,1732355432109,-202.4,0.00010959,2]
[343104387,1732355432119,-151.15111557,0.00013973,2]
[343104397,1732355432378,-12.94725943,0.00013973,2]
[343104398,1732355432388,-8449.8575229,0.00016562,2]
[343104399,1732355432397,-2000.0,0.00017,2]
[343104400,1732355432407,-310.67433064,0.00017589,2]
[343104401,1732355432416,-500.0,0.0001789,2]
[343104402,1732355432425,-500.0,0.00017896,2]
[343104403,1732355432435,-500.0,0.00017898,2]
[343104404,1732355432447,-500.0,0.00017899,2]
[343104405,1732355432456,-201.53135085,0.00017899,2]
[343104406,1732355432465,-325.70089933,0.00017899,2]
[343104407,1732355432475,-516.43710089,0.00017899,2]
[343104408,1732355432485,-500.0,0.00017899,2]
[343104409,1732355432495,-352.18510197,0.00017899,2]
[343104410,1732355432504,-212.57895193,0.00017899,2]
[343104411,1732355432514,-500.0,0.00017899,2]
[343104412,1732355432524,-235.87885902,0.000179,2]
[343104413,1732355432534,-239050.11068471,0.000179,2]
[343104414,1732355432544,-12229.41183087,0.000179,2]
[343104415,1732355432554,-273.766,0.0001805,2]
[343104416,1732355432563,-301.112233,0.000181,2]
[343104417,1732355432574,-1102.47332652,0.000181,2]
[343104418,1732355432583,-500.0,0.00018173,2]
[343104419,1732355432593,-155.0,0.00018173,2]
[343104420,1732355432606,-500.0,0.00018173,2]
[343104421,1732355432616,-160.0,0.00018173,2]
[343104422,1732355432626,-500.0,0.00018173,2]
[343104423,1732355432636,-160.0,0.00018173,2]
[343104424,1732355432646,-500.0,0.00018173,2]
[343104425,1732355432656,-500.0,0.00018173,2]
[343104426,1732355432666,-500.0,0.00018173,2]
[343104427,1732355432675,-500.33563402,0.00018173,2]
[343104428,1732355432685,-500.0,0.00018198,2]
[343104429,1732355432695,-1854.05508696,0.00018199,2]
[343104430,1732355432704,-165.39360455,0.00018199,2]
[343104431,1732355432713,-500.0,0.00018199,2]
[343104432,1732355432723,-325.46748218,0.00018199,2]
[343104433,1732355432733,-500.0,0.00018199,2]
[343104434,1732355432742,-1060556.62254802,0.000182,2]
[343104435,1732355432752,-151.0,0.000182,2]
[343104436,1732355432762,-300.224466,0.000182,2]
[343104437,1732355432772,-500.0,0.00018273,2]
[343104438,1732355432782,-607.38270343,0.00018273,2]
[343104439,1732355432791,-500.0,0.00018273,2]
[343104440,1732355432801,-500.38684072,0.00018273,2]
[343104441,1732355432811,-500.0,0.00018273,2]
[343104442,1732355432821,-500.37857725,0.00018273,2]
[343104443,1732355432831,-258.94347028,0.00018273,2]
[343104444,1732355432840,-500.0,0.00018273,2]
[343104445,1732355432852,-500.0,0.00018273,2]
[343104446,1732355432861,-500.75660078,0.00018273,2]
[343104447,1732355432871,-500.73596562,0.00018273,2]
[343104448,1732355432880,-500.0,0.00018273,2]
[343104449,1732355432890,-500.0,0.00018273,2]
[343104450,1732355432899,-277865.90259159,0.000183,2]
[343104451,1732355432912,-22346.42464544,0.000183,2]
[343104456,1732355438362,-1545.0459058,0.00018199,2]
[343104457,1732355438373,-181.82211165,0.00018273,2]
[343104459,1732355438383,-306.17967579,0.00018273,2]
[343104460,1732355438392,-4948.35373679,0.000183,2]
[343104461,1732355438404,-2318.5,0.000183,2]
[343104462,1732355438415,-10815.0592,0.000183,2]
[343104529,1732355443061,-1958.26914443,0.000178,2]
[343104530,1732355443071,-2988.05699376,0.00018117,2]
[343104692,1732356632271,-176.00078443,0.00010023,2]
[343104694,1732356632281,-500.0,0.00010536,2]
[343104696,1732356632291,-500.0,0.00010536,2]
[343104698,1732356632300,-334.66757769,0.00010536,2]
[343104700,1732356632309,-455.84,0.00010959,2]
[343104702,1732356632318,-164.451265,0.00013973,2]
[343104704,1732356632327,-300.0,0.00018198,2]
[343104705,1732356632337,-2474.83193019,0.00018199,2]
[343104707,1732356632349,-500.0,0.00018199,2]
[343104708,1732356632358,-4996.10733696,0.000182,2]
[343104709,1732356632368,-157.25257267,0.000182,2]
[343104710,1732356632377,-183705.4404346,0.000182,2]
[343104711,1732356632516,-7712.39774447,0.000182,2]
[343104740,1732356640121,-22310.59361274,0.000182,2]
[343104776,1732356644199,-3613.63584926,0.00018018,2]
[343104786,1732356646389,-455.41,0.00018018,2]
[343104883,1732357832468,-189.75,0.00010849,2]
[343104885,1732357832478,-189.75,0.00010959,2]
[343104887,1732357832487,-158.13,0.00010959,2]
[343104889,1732357832496,-358.373195,0.00010959,2]
[343104891,1732357832508,-432.296805,0.00010959,2]
[343104893,1732357832517,-95.51014237,0.00013973,2]
[343104896,1732357832529,-68.42451563,0.00013973,2]
[343104899,1732357832538,-403.768537,0.00015865,2]
[343104901,1732357832549,-413.787277,0.00015865,2]
[343104903,1732357832559,-300.0,0.00016241,2]
[343104905,1732357832568,-13194.72,0.00016242,2]
[343104907,1732357832578,-421.251653,0.00016348,2]
[343104909,1732357832587,-817.555814,0.0001655,2]
[343104911,1732357832596,-206.553993,0.00016698,2]
[343104913,1732357832607,-1155.70367531,0.00016703,2]
[343104944,1732357838614,-988.30257809,0.00016703,2]
[343104946,1732357838636,-817.555814,0.00017235,2]
[343104949,1732357838657,-500.0,0.000173,7]
[343104951,1732357838678,-500.0,0.000173,7]
[343104953,1732357838693,-500.0,0.000173,7]
[343104955,1732357838703,-500.0,0.000173,7]
[343104957,1732357838712,-500.0,0.000173,7]
[343104959,1732357838721,-500.0,0.000173,7]
[343104961,1732357838731,-500.0,0.000173,7]
[343104962,1732357838740,-500.0,0.000173,7]
[343104964,1732357838749,-500.0,0.000173,7]
[343104966,1732357838759,-253.13,0.000173,7]
[343104968,1732357838768,-420.0,0.00017752,2]
[343104970,1732357838778,-1928.52001623,0.00017857,2]
[343104972,1732357838787,-2068.8723293,0.00017879,2]
[343104975,1732357840274,-4002.04759363,0.00017879,2]
[343104976,1732357840284,-532.9434708,0.000179,2]
[343104977,1732357840294,-21857.66532283,0.000179,2]
[343105014,1732357843362,-3102.29254572,0.000179,2]
[343105016,1732357843375,-964.27159345,0.000179,2]
[343105018,1732357843385,-2475.97797975,0.00018,2]
[343105021,1732357843397,-3363.92664663,0.00018,2]
[343105023,1732357843408,-259.64883507,0.00018,2]
[343105033,1732357843493,-471.03162155,0.00018,2]
[343105035,1732357843505,-1583.93,0.00018,2]
[343105037,1732357843518,-302.0,0.00018,2]
[343105128,1732357846397,-733.96429467,0.00017721,2]
[343105140,1732358463695,16895.20043,0.00029,120]
[343105209,1732359032600,-176.00078443,0.00010326,2]
[343105212,1732359032617,-176.00078443,0.0001033,2]
[343105214,1732359032630,-164.187038,0.00013973,2]
[343105216,1732359032646,-281.30457,0.00015586,2]
[343105218,1732359032662,-256.490595,0.00015939,2]
[343105219,1732359032679,-300.0,0.0001596,2]
[343105220,1732359032696,-11489.45810976,0.00015961,2]
[343105221,1732359032712,-13390.54189024,0.00015961,2]
[343105222,1732359032724,-281.30457,0.00016271,2]
[343105223,1732359032742,-281.30457,0.00016956,2]
[343105224,1732359032756,-3372.23366119,0.000179,2]
[343105225,1732359032774,-561.66899292,0.000179,2]
[343105226,1732359032790,-10232.12231259,0.000179,2]
[343105227,1732359032805,-640.7012621,0.000179,2]
[343105228,1732359032818,-500.0,0.00017973,2]
[343105229,1732359032831,-160.0,0.00017973,2]
[343105230,1732359032844,-500.0,0.00017973,2]
[343105231,1732359032858,-151.01717901,0.00017973,2]
[343105232,1732359032871,-160.0,0.00017973,2]
[343105233,1732359032884,-992.22599385,0.00017982,2]
[343105234,1732359032897,-500.0,0.00017999,2]
[343105235,1732359032911,-500.0,0.00017999,2]
[343105236,1732359032924,-353.62271322,0.00017999,2]
[343105237,1732359032937,-500.0,0.00017999,2]
[343105238,1732359032951,-500.0,0.00017999,2]
[343105239,1732359032965,-500.0,0.00017999,2]
[343105240,1732359032978,-500.0,0.00017999,2]
[343105241,1732359032991,-500.0,0.00017999,2]
[343105242,1732359033005,-171.38255227,0.00017999,2]
[343105243,1732359033019,-500.0,0.00017999,2]
[343105244,1732359033032,-500.0,0.00017999,2]
[343105245,1732359033046,-500.0,0.00017999,2]
[343105246,1732359033061,-500.0,0.00017999,2]
[343105247,1732359033075,-601.007394,0.00017999,2]
[343105248,1732359033088,-500.0,0.00017999,2]
[343105249,1732359033103,-500.0,0.00017999,2]
[343105250,1732359033116,-500.0,0.00017999,2]
[343105251,1732359033130,-500.0,0.00017999,2]
[343105252,1732359033146,-500.0,0.00017999,2]
[343105253,1732359033160,-500.0,0.00017999,2]
[343105254,1732359033174,-500.0,0.00017999,2]
[343105255,1732359033188,-382.14165063,0.00017999,2]
[343105256,1732359033203,-500.0,0.00017999,2]
[343105257,1732359033216,-500.0,0.00017999,2]
[343105258,1732359033231,-500.0,0.00017999,2]
[343105259,1732359033245,-500.0,0.00017999,2]
[343105260,1732359033259,-500.0,0.00017999,2]
[343105261,1732359033273,-500.0,0.00017999,2]
[343105262,1732359033287,-500.0,0.00017999,2]
[343105263,1732359033300,-500.0,0.00017999,2]
[343105264,1732359033314,-500.0,0.00017999,2]
[343105265,1732359033328,-168.89198396,0.00017999,2]
[343105266,1732359033343,-500.0,0.00017999,2]
[343105267,1732359033357,-527.74091849,0.00017999,2]
[343105268,1732359033372,-500.0,0.00017999,2]
[343105269,1732359033387,-500.0,0.00017999,2]
[343105270,1732359033401,-500.0,0.00017999,2]
[343105271,1732359033415,-500.0,0.00017999,2]
[343105272,1732359033429,-500.0,0.00017999,2]
[343105273,1732359033443,-500.0,0.00017999,2]
[343105274,1732359033457,-486.13015254,0.00017999,2]
[343105275,1732359033471,-500.0,0.00017999,2]
[343105276,1732359033482,-500.0,0.00017999,2]
[343105277,1732359033495,-500.0,0.00017999,2]
[343105278,1732359033505,-205.66056299,0.00017999,2]
[343105279,1732359033515,-500.0,0.00017999,2]
[343105280,1732359033525,-500.0,0.00017999,2]
[343105281,1732359033721,-500.0,0.00017999,2]
[343105282,1732359033747,-500.0,0.00017999,2]
[343105283,1732359033761,-500.0,0.00017999,2]
[343105284,1732359033771,-500.0,0.00017999,2]
[343105285,1732359033781,-500.0,0.00017999,2]
[343105286,1732359033791,-500.0,0.00017999,2]
[343105287,1732359033800,-636.50188339,0.00017999,2]
[343105288,1732359033810,-500.0,0.00017999,2]
[343105289,1732359033820,-500.0,0.00017999,2]
[343105290,1732359033831,-500.0,0.00017999,2]
[343105291,1732359033840,-500.0,0.00017999,2]
[343105292,1732359033850,-500.0,0.00017999,2]
[343105293,1732359033860,-197.65523383,0.00017999,2]
[343105294,1732359033870,-500.0,0.00017999,2]
[343105295,1732359033880,-423.17789117,0.00017999,2]
[343105296,1732359033896,-350.94506693,0.00017999,2]
[343105297,1732359033905,-61611.56606293,0.00018,2]
[343105332,1732359038882,-759.04,0.00010959,2]
[343105334,1732359038895,-3036.34267842,0.00018,2]
[343105340,1732359038949,-16768.5000001,0.00018,2]
[343105414,1732359043470,-4959.5917824,0.00018,2]
[343105415,1732359043531,-360.98,0.00018,2]
[343105416,1732359043545,-5406.50439315,0.00018,2]
[343105417,1732359043554,-350.16420847,0.00018,2]
[343105418,1732359043564,-18622.0380292,0.00018,2]
[343105419,1732359043576,-5003.20970444,0.00018,2]
[343105420,1732359043588,-5252.00185862,0.00018,2]
[343105461,1732359648506,9396.6200808,0.00029614,120]
[343105529,1732360236580,-167.508035,0.00013422,2]
[343105531,1732360236590,-167.508035,0.00013973,2]
[343105532,1732360236600,-109.219396,0.00016398,2]
[343105534,1732360236612,-300.0,0.00016398,2]
[343105535,1732360236624,-599.3556809,0.00016398,2]
[343105536,1732360236633,-315.320699,0.00016464,2]
[343105537,1732360236642,-300.0,0.00016815,2]
[343105538,1732360236654,-300.0,0.00016815,2]
[343105539,1732360236664,-14957.4088915,0.00016816,2]
[343105540,1732360236674,-315.320699,0.00017149,2]
[343105541,1732360236683,-450.6334053,0.000173,7]
[343105542,1732360236695,-49.3665947,0.000173,7]
[343105543,1732360236706,-500.0,0.000173,7]
[343105544,1732360236716,-173.23,0.000173,7]
[343105545,1732360236725,-500.0,0.000173,7]
[343105546,1732360236735,-315.320699,0.00017834,2]
[343105547,1732360236745,-280.86010205,0.00017899,2]
[343105548,1732360236755,-518.765776,0.00017899,2]
[343105549,1732360236765,-177.88971045,0.00017899,2]
[343105550,1732360236775,-561.84506999,0.00017899,2]
[343105551,1732360236786,-500.0,0.00017899,2]
[343105552,1732360236797,-609.57001695,0.00017899,2]
[343105553,1732360236807,-427.13417474,0.000179,2]
[343105554,1732360236816,-4936.69996312,0.000179,2]
[343105562,1732360239004,-4988.64128001,0.000179,2]
[343105574,1732360244179,-20480.40105296,0.000179,2]
[343105611,1732360246818,-5577.32610012,0.00017721,2]
[343105741,1732361431933,-158.879271,0.00013833,2]
[343105743,1732361431943,-158.879271,0.00013973,2]
[343105745,1732361431952,-300.0,0.00015739,2]
[343105747,1732361431962,-300.0,0.00015739,2]
[343105749,1732361431971,-726.24522321,0.0001574,2]
[343105753,1732361432005,-24133.75477679,0.0001574,2]
[343105755,1732361432015,-467.605838,0.00016015,2]
[343105756,1732361432024,-306.468566,0.00016289,2]
[343105758,1732361432033,-467.605838,0.000167,2]
[343105760,1732361432043,-304.609096,0.00017078,2]
[343105761,1732361432052,-312.5469369,0.00017178,2]
[343105762,1732361432061,-1865.23362963,0.000172,2]
[343105763,1732361432070,-420.0,0.00017212,2]
[343105764,1732361432079,-500.0,0.000173,7]
[343105765,1732361432088,-500.0,0.000173,7]
[343105766,1732361432097,-500.0,0.000173,7]
[343105767,1732361432107,-500.0,0.000173,7]
[343105768,1732361432116,-500.0,0.000173,7]
[343105770,1732361432126,-500.0,0.000173,7]
[343105772,1732361432135,-500.0,0.000173,7]
[343105774,1732361432144,-500.0,0.000173,7]
[343105775,1732361432155,-500.0,0.000173,7]
[343105776,1732361432164,-500.0,0.000173,7]
[343105777,1732361432173,-500.0,0.000173,7]
[343105778,1732361432182,-500.0,0.000173,7]
[343105779,1732361432191,-500.0,0.000173,7]
[343105780,1732361432200,-500.0,0.000173,7]
[343105781,1732361432209,-500.0,0.000173,7]
[343105782,1732361432218,-500.0,0.000173,7]
[343105783,1732361432227,-500.0,0.000173,7]
[343105784,1732361432237,-500.0,0.000173,7]
[343105785,1732361432250,-500.0,0.00017353,2]
[343105786,1732361432259,-467.605838,0.00017385,2]
[343105787,1732361432393,-362.8050326,0.00017799,2]